[Event "SVK-ch Open 2018"]
[Site "Banska Stiavnica"]
[Date "2018.07.07"]
[Round "1"]
[White "Demeter, Peter"]
[Black "Holicky, Miroslav"]
[Result "1-0"]
[ECO "A11"]
[WhiteElo "2146"]
[BlackElo "1765"]
[Annotator "NA"]
[PlyCount "69"]
[EventDate "2018.07.07"]
[EventType "swiss"]
[EventCountry "SVK"]
[SourceTitle "playchess.com"]
[Source "ChessBase"]
[SourceQuality "1"]
[TimeControl "40/5400+30:1800+30"]

1. c4 {[%emt 0:00:00]} c6 {[%emt 0:00:00]} 2. Nf3 {[%emt 0:00:02]} Nf6 {[%emt 0:00:48]} 3. g3 {[%emt 0:00:05]} g6 {[%emt 0:01:28]} 4. Bg2 {[%emt 0:00:06]} Bg7 {[%emt 0:00:10]} 5. O-O {[%emt 0:00:23]} O-O {[%emt 0:00:11]} 6. d3 {[%emt 0:00:16]} d5 {[%emt 0:00:40]} 7. Nc3 {[%emt 0:00:20]} dxc4 {[%emt 0:01:17]} 8. dxc4 {[%emt 0:00:08]} Be6 {[%emt 0:08:39]} 9. Qa4 {[%emt 0:08:49]} Nbd7 {[%emt 0:03:40]} 10. Qb4 {[%emt 0:00:38]} Qb6 {[%emt 0:06:00]} 11. Qxe7 {[%emt 0:12:25]} Rfe8 {[%emt 0:04:02]} 12. Qd6 Bxc4 {[%emt 0:02:52]} 13. Qd2 {[%emt 0:09:38]} Rad8 {[%emt 0:01:31]} 14. Qc2 {[%emt 0:00:44]} Qa6 {[%emt 0:05:31]} 15. Re1 {[%emt 0:02:49]} Ng4 {[%emt 0:05:26]} 16. h3 {[%emt 0:03:15]} Nge5 {[%emt 0:00:39]} 17. Bg5 {[%emt 0:04:52]} f6 {[%emt 0:01:58]} 18. Be3 {[%emt 0:02:04]} Nxf3+ {[%emt 0:01:29]} 19. Bxf3 {[%emt 0:00:06]} Ne5 {[%emt 0:00:14]} 20. Bg2 {[%emt 0:00:13]} Be6 {[%emt 0:03:09]} 21. b3 {[%emt 0:03:22]} Qa5 {[%emt 0:05:07]} 22. Rad1 {[%emt 0:04:57]} Bf8 {[%emt 0:03:18]} 23. Ne4 {[%emt 0:05:02]} Kg7 {[%emt 0:01:15]} 24. f4 {[%emt 0:03:38]} Nf7 {[%emt 0:03:52]} 25. Qb2 {[%emt 0:02:55]} Be7 {[%emt 0:09:14]} 26. Bf2 {[%emt 0:08:32]} Bd5 {[%emt 0:05:43]} 27. Nd2 {[%emt 0:01:35]} Bxg2 {[%emt 0:00:21]} 28. Kxg2 {[%emt 0:00:52]} Nd6 {[%emt 0:08:00]} 29. e4 {[%emt 0:01:29]} Qb5 {[%emt 0:03:46]} 30. Bd4 {[%emt 0:04:37]} Rf8 {[%emt 0:04:26]} 31. e5 {[%emt 0:02:57]} Qd5+ {[%emt 0:03:17]} 32. Nf3 {[%emt 0:00:24]} Nf5 {[%emt 0:04:56]} 33. exf6+ {[%emt 0:00:58]} Rxf6 {[%emt 0:00:55]} 34. Rxe7+ {[%emt 0:02:36]} Nxe7 {[%emt 0:00:25]} 35. Bxf6+ {[%emt 0:00:06]} 1-0

[Event "SVK-ch Open 2018"]
[Site "Banska Stiavnica"]
[Date "2018.07.07"]
[Round "1"]
[White "Hrbek, Stepan"]
[Black "Soldan, Jan"]
[Result "1-0"]
[ECO "B90"]
[WhiteElo "2129"]
[BlackElo "1759"]
[Annotator "NA"]
[PlyCount "55"]
[EventDate "2018.07.07"]
[EventType "swiss"]
[EventCountry "SVK"]
[SourceTitle "playchess.com"]
[Source "ChessBase"]
[SourceQuality "1"]
[TimeControl "40/5400+30:1800+30"]

1. e4 {[%emt 0:00:00]} c5 {[%emt 0:00:00]} 2. Nf3 {[%emt 0:00:00]} d6 {[%emt 0:00:00]} 3. d4 {[%emt 0:00:02]} cxd4 {[%emt 0:00:03]} 4. Nxd4 {[%emt 0:00:03]} Nf6 {[%emt 0:00:10]} 5. Nc3 {[%emt 0:00:03]} a6 {[%emt 0:00:29]} 6. Be3 {[%emt 0:00:35]} e6 {[%emt 0:00:10]} 7. f3 {[%emt 0:02:36]} Be7 {[%emt 0:00:23]} 8. Qd2 {[%emt 0:06:17]} b5 {[%emt 0:00:51]} 9. g4 {[%emt 0:12:57]} Bd7 {[%emt 0:05:33]} 10. O-O-O {[%emt 0:09:58]} b4 {[%emt 0:00:14]} 11. Nce2 {[%emt 0:00:10]} a5 {[%emt 0:00:07]} 12. g5 {[%emt 0:02:09]} Nh5 {[%emt 0:00:18]} 13. Ng3 {[%emt 0:00:06]} Nxg3 {[%emt 0:03:31]} 14. hxg3 {[%emt 0:00:06]} Nc6 {[%emt 0:01:08]} 15. Nb5 {[%emt 0:09:46]} Ne5 {[%emt 0:02:53]} 16. Nxd6+ {[%emt 0:02:14]} Bxd6 {[%emt 0:00:14]} 17. Qxd6 {[%emt 0:00:06]} Nxf3 {[%emt 0:00:11]} 18. Qf4 {[%emt 0:16:25]} b3 {[%emt 0:01:15]} 19. a3 {[%emt 0:01:18]} bxc2 {[%emt 0:00:26]} 20. Rd6 {[%emt 0:03:55]} Qb8 {[%emt 0:06:07]} 21. e5 {[%emt 0:02:05]} Qb3 {[%emt 0:01:20]} 22. Bc4 {[%emt 0:02:35]} Qa4 {[%emt 0:02:41]} 23. Qxf3 {[%emt 0:00:57]} Rc8 {[%emt 0:04:03]} 24. g6 {[%emt 0:07:04]} f6 {[%emt 0:02:55]} 25. Bxe6 {[%emt 0:01:06]} Bc6 {[%emt 0:03:29]} 26. Bd5 {[%emt 0:00:46]} Bxd5 {[%emt 0:06:21]} 27. Qxd5 {[%emt 0:00:35]} Qc4 {[%emt 0:01:03]} 28. Rd8+ {[%emt 0:00:18]} 1-0

[Event "SVK-ch Open 2018"]
[Site "Banska Stiavnica"]
[Date "2018.07.07"]
[Round "1"]
[White "Bronis, Marian"]
[Black "Fizer, Marek"]
[Result "1-0"]
[ECO "E43"]
[WhiteElo "2101"]
[BlackElo "1740"]
[Annotator "NA"]
[PlyCount "67"]
[EventDate "2018.07.07"]
[EventType "swiss"]
[EventCountry "SVK"]
[SourceTitle "playchess.com"]
[Source "ChessBase"]
[SourceQuality "1"]
[TimeControl "40/5400+30:1800+30"]

1. d4 {[%emt 0:00:00]} Nf6 {[%emt 0:00:00]} 2. c4 {[%emt 0:00:00]} e6 {[%emt 0:00:04]} 3. Nc3 {[%emt 0:02:58]} Bb4 {[%emt 0:01:38]} 4. e3 {[%emt 0:01:54]} b6 {[%emt 0:05:17]} 5. Bd3 {[%emt 0:00:49]} Bb7 {[%emt 0:01:39]} 6. Nge2 {[%emt 0:00:52]} Bxg2 {[%emt 0:20:36]} 7. Rg1 {[%emt 0:01:33]} Bf3 {[%emt 0:00:04]} 8. Rxg7 {[%emt 0:00:44]} Bg4 {[%emt 0:00:38]} 9. e4 {[%emt 0:05:16]} Bf8 {[%emt 0:05:12]} 10. Rg5 {[%emt 0:05:40]} h6 {[%emt 0:00:55]} 11. Rb5 {[%emt 0:00:17]} Nc6 {[%emt 0:02:31]} 12. e5 {[%emt 0:04:04]} Nxd4 {[%emt 0:00:27]} 13. Be4 {[%emt 0:02:21]} Nxb5 {[%emt 0:04:35]} 14. cxb5 {[%emt 0:01:41]} Nxe4 {[%emt 0:03:59]} 15. Nxe4 {[%emt 0:00:08]} Be7 {[%emt 0:00:22]} 16. Bf4 {[%emt 0:03:08]} h5 {[%emt 0:06:53]} 17. Qd2 {[%emt 0:01:44]} Rg8 {[%emt 0:03:58]} 18. O-O-O {[%emt 0:00:28]} Bf5 {[%emt 0:08:21]} 19. N2g3 {[%emt 0:02:37]} Bg6 {[%emt 0:07:26]} 20. Qe2 {[%emt 0:04:31]} h4 {[%emt 0:07:39]} 21. Nh5 {[%emt 0:03:04]} Bxe4 {[%emt 0:04:08]} 22. Qxe4 {[%emt 0:00:19]} Rg6 {[%emt 0:08:20]} 23. Kb1 {[%emt 0:01:31]} a6 {[%emt 0:01:39]} 24. Qe3 {[%emt 0:02:12]} axb5 {[%emt 0:02:51]} 25. Bh6 {[%emt 0:01:06]} Bg5 {[%emt 0:01:49]} 26. Bxg5 {[%emt 0:03:06]} Qxg5 {[%emt 0:00:12]} 27. Nf6+ {[%emt 0:00:10]} Kd8 {[%emt 0:00:10]} 28. Qd4 {[%emt 0:09:33]} Qf5+ {[%emt 0:02:01]} 29. Ka1 {[%emt 0:00:15]} d6 {[%emt 0:00:14]} 30. exd6 {[%emt 0:08:17]} c5 {[%emt 0:00:36]} 31. Qxh4 {[%emt 0:06:46]} Qxf6 {[%emt 0:00:11]} 32. Qe4 {[%emt 0:00:01]} Rc8 {[%emt 0:01:01]} 33. Qb7 {[%emt 0:00:38]} Qd4 {[%emt 0:00:21]} 34. Qe7# 1-0

[Event "SVK-ch Open 2018"]
[Site "Banska Stiavnica"]
[Date "2018.07.07"]
[Round "1"]
[White "Balogh, Peter"]
[Black "Cedzo, Adam"]
[Result "1/2-1/2"]
[ECO "C54"]
[WhiteElo "2097"]
[BlackElo "1737"]
[Annotator "NA"]
[PlyCount "49"]
[EventDate "2018.07.07"]
[EventType "swiss"]
[EventCountry "SVK"]
[SourceTitle "playchess.com"]
[Source "ChessBase"]
[SourceQuality "1"]
[TimeControl "40/5400+30:1800+30"]

1. e4 {[%emt 0:00:00]} e5 {[%emt 0:00:00]} 2. Nf3 {[%emt 0:00:00]} Nc6 {[%emt 0:00:00]} 3. Bc4 {[%emt 0:00:00]} Bc5 {[%emt 0:00:11]} 4. c3 {[%emt 0:00:00]} Nf6 {[%emt 0:00:08]} 5. d4 {[%emt 0:00:04]} exd4 {[%emt 0:00:08]} 6. cxd4 {[%emt 0:00:08]} Bb4+ {[%emt 0:00:10]} 7. Nc3 {[%emt 0:00:08]} Nxe4 {[%emt 0:00:27]} 8. O-O {[%emt 0:00:09]} Bxc3 {[%emt 0:00:44]} 9. d5 {[%emt 0:00:08]} Na5 {[%emt 0:01:59]} 10. Bd3 {[%emt 0:05:00]} Nc5 {[%emt 0:03:01]} 11. bxc3 {[%emt 0:02:24]} O-O {[%emt 0:00:23]} 12. Bxh7+ {[%emt 0:00:43]} Kxh7 {[%emt 0:02:40]} 13. Ng5+ {[%emt 0:00:15]} Kg6 {[%emt 0:01:17]} 14. Qg4 {[%emt 0:02:56]} f5 {[%emt 0:03:55]} 15. Qg3 {[%emt 0:00:44]} Kf6 {[%emt 0:01:01]} 16. Nh7+ {[%emt 0:07:43]} Kf7 {[%emt 0:00:20]} 17. Bg5 {[%emt 0:01:02]} Qe8 {[%emt 0:00:36]} 18. Nxf8 {[%emt 0:01:12]} Qxf8 {[%emt 0:01:25]} 19. Qxc7 {[%emt 0:01:14]} b6 {[%emt 0:00:15]} 20. Rfe1 {[%emt 0:02:09]} Bb7 {[%emt 0:01:37]} 21. Re7+ {[%emt 0:01:20]} Kg8 {[%emt 0:00:19]} 22. Qe5 {[%emt 0:05:32]} Nc4 {[%emt 0:06:36]} 23. Qd4 {[%emt 0:02:09]} Nd6 {[%emt 0:02:55]} 24. f3 {[%emt 0:02:21]} Nf7 {[%emt 0:06:46]} 25. Qh4 {[%emt 0:16:25]} 1/2-1/2

[Event "SVK-ch Open 2018"]
[Site "Banska Stiavnica"]
[Date "2018.07.07"]
[Round "1"]
[White "Lukac, Roman"]
[Black "Slaby, Jozef"]
[Result "1/2-1/2"]
[ECO "B12"]
[WhiteElo "2089"]
[BlackElo "1731"]
[Annotator "NA"]
[PlyCount "64"]
[EventDate "2018.07.07"]
[EventType "swiss"]
[EventCountry "SVK"]
[SourceTitle "playchess.com"]
[Source "ChessBase"]
[SourceQuality "1"]
[TimeControl "40/5400+30:1800+30"]

1. e4 {[%emt 0:00:00]} c6 {[%emt 0:00:00]} 2. d4 {[%emt 0:00:11]} d5 {[%emt 0:00:00]} 3. f3 {[%emt 0:00:29]} dxe4 {[%emt 0:01:17]} 4. fxe4 {[%emt 0:00:02]} Nf6 {[%emt 0:00:10]} 5. e5 {[%emt 0:03:20]} Nd5 {[%emt 0:02:21]} 6. a3 {[%emt 0:04:40]} Bf5 {[%emt 0:01:10]} 7. c4 {[%emt 0:01:19]} Nb6 {[%emt 0:00:45]} 8. Nf3 {[%emt 0:00:17]} e6 {[%emt 0:00:39]} 9. Nc3 {[%emt 0:00:26]} N8d7 {[%emt 0:02:29]} 10. Bd3 {[%emt 0:05:53]} Bxd3 {[%emt 0:00:42]} 11. Qxd3 {[%emt 0:00:02]} Qc7 {[%emt 0:00:57]} 12. Bg5 {[%emt 0:07:32]} h6 {[%emt 0:04:00]} 13. Bh4 {[%emt 0:02:55]} Nc8 {[%emt 0:01:46]} 14. O-O {[%emt 0:02:03]} Ne7 {[%emt 0:00:12]} 15. b4 {[%emt 0:06:53]} Nf5 {[%emt 0:00:23]} 16. Bf2 {[%emt 0:00:14]} O-O-O {[%emt 0:05:37]} 17. Qe4 {[%emt 0:06:06]} Kb8 {[%emt 0:03:44]} 18. g4 {[%emt 0:07:16]} Ne7 {[%emt 0:00:31]} 19. Rac1 {[%emt 0:00:51]} g5 {[%emt 0:06:41]} 20. d5 {[%emt 0:06:57]} Qc8 {[%emt 0:04:43]} 21. d6 {[%emt 0:24:44]} Ng6 {[%emt 0:00:47]} 22. Nb5 {[%emt 0:00:08]} c5 {[%emt 0:05:04]} 23. Rb1 {[%emt 0:08:01]} Qc6 {[%emt 0:02:05]} 24. Qe3 {[%emt 0:01:32]} Nf4 {[%emt 0:01:34]} 25. Bg3 {[%emt 0:01:17]} f5 {[%emt 0:02:23]} 26. exf6 {[%emt 0:01:19]} Nxf6 {[%emt 0:00:19]} 27. Bxf4 {[%emt 0:04:29]} gxf4 {[%emt 0:01:20]} 28. Qxf4 {[%emt 0:02:06]} Nd7 {[%emt 0:00:54]} 29. bxc5 {[%emt 0:00:42]} Qxc5+ {[%emt 0:01:03]} 30. Kg2 {[%emt 0:00:43]} a6 {[%emt 0:01:56]} 31. Nc7 {[%emt 0:00:57]} Qxd6 {[%emt 0:01:52]} 32. Nxa6+ {[%emt 0:00:31]} Ka7 {[%emt 0:00:13]} 1/2-1/2

[Event "SVK-ch Open 2018"]
[Site "Banska Stiavnica"]
[Date "2018.07.07"]
[Round "1"]
[White "Panko, Eduard"]
[Black "Sarkozy, Ladislav"]
[Result "0-1"]
[ECO "B20"]
[WhiteElo "1958"]
[BlackElo "2247"]
[Annotator "NA"]
[PlyCount "70"]
[EventDate "2018.07.07"]
[EventType "swiss"]
[EventCountry "SVK"]
[SourceTitle "playchess.com"]
[Source "ChessBase"]
[SourceQuality "1"]
[TimeControl "40/5400+30:1800+30"]

1. e4 {[%emt 0:00:00]} c5 {[%emt 0:00:00]} 2. a3 {[%emt 0:00:00]} g6 {[%emt 0:00:29]} 3. Nc3 {[%emt 0:00:00]} Bg7 {[%emt 0:00:44]} 4. Bc4 {[%emt 0:00:30]} d6 {[%emt 0:01:48]} 5. b4 {[%emt 0:03:23]} Nc6 {[%emt 0:02:20]} 6. bxc5 {[%emt 0:03:33]} dxc5 {[%emt 0:00:12]} 7. Nge2 {[%emt 0:01:55]} Nf6 {[%emt 0:02:18]} 8. Rb1 {[%emt 0:03:41]} O-O {[%emt 0:01:50]} 9. O-O {[%emt 0:01:32]} b6 {[%emt 0:00:51]} 10. d3 {[%emt 0:01:33]} Bb7 {[%emt 0:01:51]} 11. Be3 {[%emt 0:01:05]} Na5 {[%emt 0:02:47]} 12. Ba2 {[%emt 0:02:01]} e5 {[%emt 0:00:48]} 13. Qd2 {[%emt 0:09:07]} c4 {[%emt 0:01:01]} 14. f3 {[%emt 0:02:58]} Ba6 {[%emt 0:09:41]} 15. Rfd1 {[%emt 0:03:44]} Qd7 {[%emt 0:03:39]} 16. d4 {[%emt 0:05:32]} exd4 {[%emt 0:00:28]} 17. Nxd4 {[%emt 0:00:45]} Rfd8 {[%emt 0:00:27]} 18. Nce2 {[%emt 0:01:32]} Qe8 {[%emt 0:02:34]} 19. c3 {[%emt 0:08:10]} Nc6 {[%emt 0:02:48]} 20. Qc2 {[%emt 0:05:35]} Ne5 {[%emt 0:00:24]} 21. Rb4 {[%emt 0:03:18]} Nd3 {[%emt 0:01:39]} 22. Ra4 {[%emt 0:03:01]} Nc5 {[%emt 0:00:18]} 23. Rb4 {[%emt 0:01:14]} Nd5 {[%emt 0:01:01]} 24. Bg5 {[%emt 0:07:26]} Nxb4 {[%emt 0:01:29]} 25. cxb4 {[%emt 0:02:56]} f6 {[%emt 0:00:24]} 26. Bxf6 {[%emt 0:12:28]} Bxf6 {[%emt 0:04:15]} 27. bxc5 {[%emt 0:00:33]} bxc5 {[%emt 0:00:41]} 28. Bxc4+ {[%emt 0:01:01]} Bxc4 {[%emt 0:04:53]} 29. Qxc4+ {[%emt 0:00:07]} Kh8 {[%emt 0:00:06]} 30. Qxc5 {[%emt 0:00:19]} Qa4 {[%emt 0:00:06]} 31. Rd2 {[%emt 0:09:40]} Rac8 {[%emt 0:00:06]} 32. Qb4 {[%emt 0:00:18]} Qxb4 {[%emt 0:00:26]} 33. axb4 {[%emt 0:00:03]} Rc4 {[%emt 0:00:09]} 34. Nb3 {[%emt 0:00:50]} Rxd2 {[%emt 0:00:06]} 35. Nxd2 {[%emt 0:00:15]} Rc2 {[%emt 0:00:06]} 0-1

[Event "SVK-ch Open 2018"]
[Site "Banska Stiavnica"]
[Date "2018.07.07"]
[Round "1"]
[White "Pasztor, Ladislav"]
[Black "Jablonicky, Martin"]
[Result "0-1"]
[ECO "A15"]
[WhiteElo "1954"]
[BlackElo "2356"]
[Annotator "NA"]
[PlyCount "99"]
[EventDate "2018.07.07"]
[EventType "swiss"]
[EventCountry "SVK"]
[SourceTitle "playchess.com"]
[Source "ChessBase"]
[SourceQuality "1"]
[TimeControl "40/5400+30:1800+30"]

1. c4 {[%emt 0:00:00]} Nf6 {[%emt 0:10:42]} 2. Nf3 {[%emt 0:00:58]} g6 {[%emt 0:00:10]} 3. Nc3 {[%emt 0:00:16]} Bg7 {[%emt 0:00:06]} 4. e4 {[%emt 0:01:31]} d6 {[%emt 0:00:05]} 5. h3 {[%emt 0:00:26]} O-O {[%emt 0:00:19]} 6. Be2 {[%emt 0:00:50]} c5 {[%emt 0:00:07]} 7. d3 {[%emt 0:00:50]} Nc6 {[%emt 0:00:06]} 8. O-O {[%emt 0:00:44]} Ne8 {[%emt 0:01:08]} 9. Nh2 {[%emt 0:02:19]} Nc7 {[%emt 0:00:40]} 10. Be3 {[%emt 0:00:56]} a6 {[%emt 0:01:07]} 11. a4 {[%emt 0:01:02]} Rb8 {[%emt 0:00:08]} 12. Qd2 {[%emt 0:01:28]} Ne6 {[%emt 0:01:32]} 13. f4 {[%emt 0:04:31]} Ned4 {[%emt 0:00:18]} 14. Rae1 {[%emt 0:01:27]} f5 {[%emt 0:00:11]} 15. exf5 {[%emt 0:02:06]} gxf5 {[%emt 0:00:11]} 16. Kh1 {[%emt 0:01:05]} Qa5 {[%emt 0:00:51]} 17. Bd1 {[%emt 0:00:50]} e6 {[%emt 0:03:38]} 18. Rg1 {[%emt 0:02:15]} b5 {[%emt 0:01:19]} 19. axb5 {[%emt 0:09:12]} axb5 {[%emt 0:00:07]} 20. cxb5 Nxb5 21. Nxb5 {[%emt 0:05:46]} Rxb5 {[%emt 0:01:54]} 22. Qxa5 {[%emt 0:02:52]} Nxa5 {[%emt 0:00:15]} 23. Bd2 Nb3 {[%emt 0:05:24]} 24. Bc3 {[%emt 0:02:19]} Nd4 {[%emt 0:03:49]} 25. Nf3 {[%emt 0:13:07]} d5 {[%emt 0:02:26]} 26. Ne5 Nb3 27. Re2 {[%emt 0:05:40]} d4 {[%emt 0:05:19]} 28. Be1 {[%emt 0:01:52]} Nc1 {[%emt 0:03:18]} 29. Rd2 {[%emt 0:02:34]} Bxe5 {[%emt 0:02:47]} 30. fxe5 {[%emt 0:05:48]} Ba6 {[%emt 0:02:44]} 31. Rf1 {[%emt 0:01:31]} Rb6 {[%emt 0:01:34]} 32. Rf3 {[%emt 0:03:58]} Rfb8 {[%emt 0:02:27]} 33. Bh4 {[%emt 0:04:03]} Rxb2 {[%emt 0:00:05]} 34. Rg3+ Kf8 35. Rxb2 {[%emt 0:04:44]} Rxb2 {[%emt 0:00:40]} 36. Bf6 {[%emt 0:01:01]} Nxd3 {[%emt 0:03:40]} 37. Bh5 {[%emt 0:02:22]} Nf2+ {[%emt 0:01:04]} 38. Kh2 {[%emt 0:00:49]} Ne4 {[%emt 0:02:53]} 39. Rg7 {[%emt 0:02:34]} Rb7 {[%emt 0:00:08]} 40. Rxb7 {[%emt 0:00:57]} Bxb7 {[%emt 0:00:05]} 41. Bd8 {[%emt 0:30:42]} c4 {[%emt 0:30:48]} 42. Ba5 {[%emt 0:02:08]} c3 {[%emt 0:02:11]} 43. Bb4+ {[%emt 0:01:56]} Kg7 {[%emt 0:00:06]} 44. Be2 {[%emt 0:00:44]} c2 {[%emt 0:00:42]} 45. Ba3 {[%emt 0:00:15]} Nc3 {[%emt 0:00:36]} 46. Bd3 {[%emt 0:01:27]} Be4 {[%emt 0:00:06]} 47. Bc4 {[%emt 0:00:04]} d3 {[%emt 0:00:30]} 48. Bxe6 {[%emt 0:02:09]} d2 {[%emt 0:00:09]} 49. Bb2 {[%emt 0:00:43]} d1=Q 50. Bxc3 {[%emt 0:00:59]} 0-1

[Event "SVK-ch Open 2018"]
[Site "Banska Stiavnica"]
[Date "2018.07.07"]
[Round "1"]
[White "Redzisz, Michal"]
[Black "Aczel, Gergely"]
[Result "0-1"]
[ECO "B86"]
[WhiteElo "1937"]
[BlackElo "2543"]
[Annotator "ChessBase"]
[PlyCount "114"]
[EventDate "2018.07.07"]
[EventType "swiss"]
[EventCountry "SVK"]
[SourceTitle "playchess.com"]
[Source "ChessBase"]
[SourceQuality "1"]
[TimeControl "40/5400+30:1800+30"]

1. e4 {[%emt 0:00:00]} c5 {[%emt 0:01:19]} 2. Nf3 {[%emt 0:00:00]} e6 {[%emt 0:00:07]} 3. d4 {[%emt 0:00:00]} cxd4 {[%emt 0:00:04]} 4. Nxd4 {[%emt 0:00:00]} Nf6 {[%emt 0:00:06]} 5. Nc3 {[%emt 0:00:00]} d6 {[%emt 0:00:06]} 6. Bc4 {[%emt 0:02:04]} Be7 {[%emt 0:00:11]} 7. Qe2 {[%emt 0:00:24]} a6 {[%emt 0:00:46]} 8. Bb3 {[%emt 0:00:48]} O-O {[%emt 0:03:09]} 9. O-O {[%emt 0:00:50]} Nbd7 {[%emt 0:00:41]} 10. a3 {[%emt 0:07:24]} Qc7 {[%emt 0:02:00]} 11. f3 {[%emt 0:11:13]} b5 {[%emt 0:00:56]} 12. Be3 {[%emt 0:02:04]} Bb7 {[%emt 0:00:11]} 13. Rad1 {[%emt 0:02:11]} Rac8 {[%emt 0:01:26]} 14. Qf2 {[%emt 0:04:22]} Rfe8 {[%emt 0:03:55]} 15. Rfe1 {[%emt 0:03:23]} Bf8 {[%emt 0:06:29]} 16. Re2 {[%emt 0:07:09]} Ne5 {[%emt 0:01:15]} 17. Kh1 {[%emt 0:02:50]} Nc4 {[%emt 0:01:32]} 18. Bxc4 {[%emt 0:00:09]} bxc4 {[%emt 0:09:12]} 19. Bc1 {[%emt 0:02:51]} Rb8 {[%emt 0:04:47]} 20. Rde1 {[%emt 0:08:01]} Ba8 {[%emt 0:03:47]} 21. Nd1 {[%emt 0:08:03]} Nd7 {[%emt 0:02:55]} 22. Ne3 {[%emt 0:03:02]} Qc5 {[%emt 0:14:03]} 23. Rd1 {[%emt 0:01:51]} Ne5 {[%emt 0:01:21]} 24. b4 {[%emt 0:01:11]} cxb3 {[%emt 0:07:07]} 25. cxb3 {[%emt 0:00:07]} a5 {[%emt 0:01:11]} 26. Rc2 {[%emt 0:02:24]} Qb6 {[%emt 0:00:44]} 27. Rb2 {[%emt 0:03:57]} d5 {[%emt 0:09:46]} 28. exd5 {[%emt 0:00:42]} Bxa3 {[%emt 0:03:01]} 29. Rc2 {[%emt 0:01:00]} Bxc1 {[%emt 0:03:48]} 30. Rcxc1 {[%emt 0:00:06]} Bxd5 {[%emt 0:00:42]} 31. Nxd5 {[%emt 0:00:19]} exd5 {[%emt 0:00:03]} 32. Qg3 {[%emt 0:00:13]} g6 {[%emt 0:08:44]} 33. f4 {[%emt 0:02:51]} Nd7 {[%emt 0:00:57]} 34. Rc6 {[%emt 0:00:12]} Qb7 {[%emt 0:03:43]} 35. h4 {[%emt 0:02:24]} Rbc8 {[%emt 0:02:30]} 36. Qc3 {[%emt 0:02:12]} Nf6 {[%emt 0:02:02]} 37. Rc1 {[%emt 0:02:35]} Rxc6 {[%emt 0:00:18]} 38. Nxc6 {[%emt 0:00:13]} Ne4 {[%emt 0:02:51]} 39. Qxa5 {[%emt 0:03:09]} Qd7 {[%emt 0:00:02]} 40. Ne5 {[%emt 0:00:43]} Qf5 {[%emt 0:01:30]} 41. Qb5 {[%emt 0:34:59]} Rf8 {[%emt 0:30:31]} 42. Qxd5 {[%emt 0:01:36]} Qxf4 {[%emt 0:00:32]} 43. Rc4 {[%emt 0:00:10]} Qxh4+ {[%emt 0:00:28]} 44. Kg1 {[%emt 0:00:06]} Qf2+ {[%emt 0:00:34]} 45. Kh2 {[%emt 0:01:18]} Qf4+ {[%emt 0:00:00]} 46. Kg1 {[%emt 0:00:00]} Qe3+ {[%emt 0:00:00]} 47. Kh2 {[%emt 0:00:00]} Qg3+ {[%emt 0:00:00]} 48. Kg1 {[%emt 0:00:00]} Nf6 {[%emt 0:00:00]} 49. Qd6 {[%emt 0:00:00]} Ra8 {[%emt 0:00:00]} 50. Ra4 {[%emt 0:00:00]} Rxa4 {[%emt 0:00:00]} 51. bxa4 {[%emt 0:00:00]} Qe1+ {[%emt 0:00:00]} 52. Kh2 {[%emt 0:00:00]} Qxe5+ {[%emt 0:00:00]} 53. Qxe5 {[%emt 0:00:00]} Ng4+ {[%emt 0:00:00]} 54. Kg3 {[%emt 0:00:00]} Nxe5 {[%emt 0:00:00]} 55. a5 {[%emt 0:00:00]} Nc6 {[%emt 0:00:00]} 56. a6 {[%emt 0:00:00]} f6 {[%emt 0:00:00]} 57. Kf4 {[%emt 0:00:00]} Kf7 {[%emt 0:00:00]} 0-1

[Event "SVK-ch Open 2018"]
[Site "Banska Stiavnica"]
[Date "2018.07.07"]
[Round "1"]
[White "Slaba, Andrea"]
[Black "Franzen, Jozef"]
[Result "0-1"]
[ECO "A05"]
[WhiteElo "1936"]
[BlackElo "2256"]
[Annotator "NA"]
[PlyCount "92"]
[EventDate "2018.07.07"]
[EventType "swiss"]
[EventCountry "SVK"]
[SourceTitle "playchess.com"]
[Source "ChessBase"]
[SourceQuality "1"]
[TimeControl "40/5400+30:1800+30"]

1. Nf3 {[%emt 0:00:00]} Nf6 {[%emt 0:00:00]} 2. g3 {[%emt 0:00:00]} g6 {[%emt 0:00:00]} 3. Bg2 {[%emt 0:00:00]} Bg7 {[%emt 0:00:00]} 4. O-O {[%emt 0:00:02]} O-O {[%emt 0:00:00]} 5. d4 {[%emt 0:00:49]} d6 {[%emt 0:00:04]} 6. c4 {[%emt 0:00:14]} c6 {[%emt 0:00:20]} 7. Nc3 {[%emt 0:00:51]} Nbd7 {[%emt 0:00:09]} 8. e4 {[%emt 0:00:24]} e5 {[%emt 0:00:11]} 9. dxe5 {[%emt 0:00:04]} dxe5 {[%emt 0:00:06]} 10. Qc2 {[%emt 0:00:57]} Re8 {[%emt 0:01:01]} 11. h3 {[%emt 0:00:09]} Qc7 {[%emt 0:03:00]} 12. Be3 {[%emt 0:00:19]} Nf8 {[%emt 0:00:46]} 13. Rac1 {[%emt 0:00:39]} Ne6 {[%emt 0:00:47]} 14. Rfd1 {[%emt 0:00:06]} Bf8 {[%emt 0:01:22]} 15. Na4 {[%emt 0:03:00]} b6 {[%emt 0:06:50]} 16. a3 {[%emt 0:03:17]} Bb7 {[%emt 0:02:45]} 17. Nc3 {[%emt 0:00:27]} a5 {[%emt 0:04:50]} 18. Ng5 {[%emt 0:02:46]} Nd4 {[%emt 0:10:04]} 19. Bxd4 {[%emt 0:01:03]} exd4 {[%emt 0:00:02]} 20. Rxd4 {[%emt 0:00:24]} Bc5 {[%emt 0:03:09]} 21. Rdd1 {[%emt 0:00:20]} Qxg3 {[%emt 0:01:14]} 22. Nf3 {[%emt 0:01:17]} Nh5 {[%emt 0:07:04]} 23. Kf1 {[%emt 0:00:58]} Qc7 {[%emt 0:00:46]} 24. Na4 {[%emt 0:00:53]} Bf8 {[%emt 0:03:05]} 25. Qb3 {[%emt 0:01:30]} Ra6 {[%emt 0:04:27]} 26. c5 {[%emt 0:00:44]} bxc5 {[%emt 0:01:36]} 27. Nxc5 {[%emt 0:00:06]} Bxc5 {[%emt 0:00:59]} 28. Rxc5 {[%emt 0:00:07]} Rb6 {[%emt 0:05:25]} 29. Qc2 {[%emt 0:00:37]} Nf4 {[%emt 0:01:00]} 30. Nd4 {[%emt 0:02:07]} Rd8 {[%emt 0:02:00]} 31. Kg1 {[%emt 0:01:41]} Qe7 {[%emt 0:01:56]} 32. f3 {[%emt 0:03:30]} Ne2+ {[%emt 0:06:22]} 33. Nxe2 {[%emt 0:02:06]} Rxd1+ {[%emt 0:00:06]} 34. Kh2 {[%emt 0:01:22]} Qd8 {[%emt 0:05:36]} 35. Rxa5 {[%emt 0:02:27]} Ba6 {[%emt 0:00:28]} 36. Nf4 {[%emt 0:01:52]} Rd2 {[%emt 0:02:02]} 37. Qc5 {[%emt 0:03:26]} Bf1 {[%emt 0:03:23]} 38. b4 {[%emt 0:01:45]} Ra2 {[%emt 0:06:25]} 39. Kg3 {[%emt 0:01:19]} Bxg2 {[%emt 0:00:56]} 40. Nxg2 {[%emt 0:00:04]} Qb8+ {[%emt 0:02:39]} 41. f4 {[%emt 0:31:47]} Rb5 {[%emt 0:31:15]} 42. Rxb5 {[%emt 0:01:19]} Rxa3+ {[%emt 0:00:37]} 43. Kh2 {[%emt 0:00:15]} Qxb5 {[%emt 0:00:22]} 44. Qd6 {[%emt 0:00:39]} Rd3 {[%emt 0:03:46]} 45. Qe7 {[%emt 0:00:16]} Qb8 {[%emt 0:01:16]} 46. Qc5 {[%emt 0:01:00]} Qd6 {[%emt 0:00:18]} 0-1